[Event "*** Titled Tuesday Blitz"]
[Site "Chess.com"]
[Date "2020.10.20"]
[Round "8"]
[White "korkmaz16"]
[Black "ajedrezhoy"]
[Result "0-1"]
[WhiteElo "2347"]
[BlackElo "2227"]
[TimeControl "180+1"]
[EndTime "11:35:19 PDT"]
[Termination "ajedrezhoy won on time"]

1. e4 {[%clk 0:01:56.6]} 1... Nf6 {[%clk 0:02:58.1]} 2. e5 {[%clk 0:01:56]} 2...
Nd5 {[%clk 0:02:57.5]} 3. Nc3 {[%clk 0:01:55.9]} 3... e6 {[%clk 0:02:56.6]} 4.
Nxd5 {[%clk 0:01:55.7]} 4... exd5 {[%clk 0:02:56.5]} 5. d4 {[%clk 0:01:56]} 5...
d6 {[%clk 0:02:56.6]} 6. Nf3 {[%clk 0:01:56.3]} 6... dxe5 {[%clk 0:02:55.1]} 7.
Nxe5 {[%clk 0:01:57.2]} 7... Nd7 {[%clk 0:02:52.1]} 8. Nxf7 {[%clk 0:01:40.8]}
8... Kxf7 {[%clk 0:02:50.4]} 9. Qh5+ {[%clk 0:01:40.3]} 9... g6 {[%clk
0:02:40.1]} 10. Qxd5+ {[%clk 0:01:39.3]} 10... Kg7 {[%clk 0:02:38.3]} 11. Bc4
{[%clk 0:01:28.2]} 11... Bb4+ {[%clk 0:02:36]} 12. c3 {[%clk 0:01:27.4]} 12...
Qe7+ {[%clk 0:02:31.2]} 13. Be3 {[%clk 0:01:24.5]} 13... Nb6 {[%clk 0:02:27.5]}
14. Qb5 {[%clk 0:01:21.6]} 14... Nxc4 {[%clk 0:02:25.2]} 15. Qxc4 {[%clk
0:01:20.9]} 15... Bd6 {[%clk 0:02:24.2]} 16. O-O {[%clk 0:01:18.8]} 16... Be6
{[%clk 0:02:21.8]} 17. d5 {[%clk 0:01:17.7]} 17... Bf7 {[%clk 0:01:57.4]} 18.
Bd4+ {[%clk 0:01:17.3]} 18... Kg8 {[%clk 0:01:54.9]} 19. Rfe1 {[%clk 0:01:06.9]}
19... Qh4 {[%clk 0:01:48.8]} 20. g3 {[%clk 0:01:02.8]} 20... Qg4 {[%clk
0:01:47.5]} 21. f3 {[%clk 0:00:57.4]} 21... Qxf3 {[%clk 0:01:39.5]} 22. Bxh8
{[%clk 0:00:43.1]} 22... Bxd5 {[%clk 0:01:34.2]} 23. Qe2 {[%clk 0:00:16]} 23...
Qh1+ {[%clk 0:01:32.7]} 24. Kf2 {[%clk 0:00:16.2]} 24... Qxh2+ {[%clk
0:01:30.1]} 25. Kf1 {[%clk 0:00:15.8]} 25... Rf8+ {[%clk 0:01:28.6]} 0-1

[Event "*** Titled Tuesday Blitz"]
[Site "Chess.com"]
[Date "2020.10.20"]
[Round "8"]
[White "ajdemipopushi"]
[Black "TST2014"]
[Result "0-1"]
[WhiteElo "2343"]
[BlackElo "2505"]
[TimeControl "180+1"]
[EndTime "11:35:28 PDT"]
[Termination "TST2014 won on time"]

1. Nf3 {[%clk 0:03:00.9]} 1... Nf6 {[%clk 0:02:56]} 2. g3 {[%clk 0:03:01]} 2...
c5 {[%clk 0:02:54]} 3. Bg2 {[%clk 0:03:01.1]} 3... Nc6 {[%clk 0:02:53.7]} 4. O-O
{[%clk 0:02:59.4]} 4... e5 {[%clk 0:02:53.3]} 5. c4 {[%clk 0:02:59.3]} 5... d5
{[%clk 0:02:50.1]} 6. cxd5 {[%clk 0:02:51.8]} 6... Nxd5 {[%clk 0:02:49.3]} 7.
Nc3 {[%clk 0:02:52]} 7... Nc7 {[%clk 0:02:48.4]} 8. a3 {[%clk 0:02:51.6]} 8...
Be7 {[%clk 0:02:41.5]} 9. b4 {[%clk 0:02:40.9]} 9... cxb4 {[%clk 0:02:38.7]} 10.
axb4 {[%clk 0:02:41.2]} 10... Bxb4 {[%clk 0:02:38.8]} 11. Nxe5 {[%clk
0:02:39.5]} 11... O-O {[%clk 0:02:11.2]} 12. Nxc6 {[%clk 0:02:35.7]} 12... bxc6
{[%clk 0:02:09.8]} 13. Bxc6 {[%clk 0:02:34.3]} 13... Bh3 {[%clk 0:02:08.5]} 14.
Re1 {[%clk 0:01:39.2]} 14... a5 {[%clk 0:01:59.6]} 15. Bxa8 {[%clk 0:01:29.6]}
15... Qxa8 {[%clk 0:02:00.5]} 16. f3 {[%clk 0:01:30.1]} 16... Rd8 {[%clk
0:01:57.5]} 17. Qc2 {[%clk 0:01:25.3]} 17... Qa7+ {[%clk 0:01:51.8]} 18. e3
{[%clk 0:01:15]} 18... Qb7 {[%clk 0:01:51.3]} 19. Kf2 {[%clk 0:00:55.5]} 19...
Ne6 {[%clk 0:01:45]} 20. Qe4 {[%clk 0:00:33.4]} 20... Qd7 {[%clk 0:01:42.3]} 21.
Re2 {[%clk 0:00:23.3]} 21... Nc5 {[%clk 0:01:37.6]} 22. Qh4 {[%clk 0:00:15.2]}
22... Nd3+ {[%clk 0:01:36.5]} 23. Kg1 {[%clk 0:00:12.8]} 23... Bxc3 {[%clk
0:01:25.2]} 24. dxc3 {[%clk 0:00:11.9]} 24... Nf4 {[%clk 0:01:24.1]} 25. Re1
{[%clk 0:00:02.3]} 25... Ng2 {[%clk 0:01:20.4]} 0-1

[Event "*** Titled Tuesday Blitz"]
[Site "Chess.com"]
[Date "2020.10.20"]
[Round "8"]
[White "Sharpchess22"]
[Black "Borsuk_Konstantin"]
[Result "1-0"]
[WhiteElo "2770"]
[BlackElo "2576"]
[TimeControl "180+1"]
[EndTime "11:35:31 PDT"]
[Termination "Sharpchess22 won by resignation"]

1. d4 {[%clk 0:03:00.9]} 1... Nf6 {[%clk 0:02:59.6]} 2. Nc3 {[%clk 0:03:00.6]}
2... d5 {[%clk 0:02:57.2]} 3. Bf4 {[%clk 0:03:00]} 3... Bf5 {[%clk 0:02:55.3]}
4. Nb5 {[%clk 0:02:57.5]} 4... Na6 {[%clk 0:02:55.2]} 5. e3 {[%clk 0:02:57.3]}
5... c6 {[%clk 0:02:54.4]} 6. Nc3 {[%clk 0:02:57.1]} 6... Nc7 {[%clk 0:02:54.3]}
7. Nf3 {[%clk 0:02:55.9]} 7... e6 {[%clk 0:02:54.4]} 8. a3 {[%clk 0:02:55.3]}
8... Bd6 {[%clk 0:02:54.3]} 9. Ne5 {[%clk 0:02:55.1]} 9... Ne4 {[%clk
0:02:50.7]} 10. Nxe4 {[%clk 0:02:52.7]} 10... Bxe4 {[%clk 0:02:50.9]} 11. Bg3
{[%clk 0:02:50.9]} 11... O-O {[%clk 0:02:48.7]} 12. Bd3 {[%clk 0:02:46.7]} 12...
f6 {[%clk 0:01:39]} 13. Nf3 {[%clk 0:02:39.4]} 13... Ne8 {[%clk 0:01:27.7]} 14.
O-O {[%clk 0:02:34]} 14... Bxg3 {[%clk 0:01:24.3]} 15. hxg3 {[%clk 0:02:32.2]}
15... Nd6 {[%clk 0:01:22.8]} 16. Qe2 {[%clk 0:02:27.8]} 16... Qe8 {[%clk
0:01:21.8]} 17. Nd2 {[%clk 0:02:27.6]} 17... Qg6 {[%clk 0:01:10.8]} 18. Bxe4
{[%clk 0:02:26.4]} 18... dxe4 {[%clk 0:01:09.2]} 19. Nc4 {[%clk 0:02:15.3]}
19... Nxc4 {[%clk 0:01:05.5]} 20. Qxc4 {[%clk 0:02:14.9]} 20... f5 {[%clk
0:01:03.8]} 21. a4 {[%clk 0:02:12.6]} 21... Rf6 {[%clk 0:01:02.1]} 22. Rfe1
{[%clk 0:02:08.8]} 22... Qg5 {[%clk 0:00:53.2]} 23. Ra3 {[%clk 0:02:07.1]} 23...
Rh6 {[%clk 0:00:51.8]} 24. Rb3 {[%clk 0:01:47.6]} 24... Qh5 {[%clk 0:00:42.8]}
25. Kf1 {[%clk 0:01:47.1]} 25... Qh1+ {[%clk 0:00:39.5]} 26. Ke2 {[%clk
0:01:47.3]} 26... Qxg2 {[%clk 0:00:39.9]} 27. Rxb7 {[%clk 0:01:46.4]} 27... Qf3+
{[%clk 0:00:32.7]} 28. Kd2 {[%clk 0:01:46.5]} 28... Qxf2+ {[%clk 0:00:30.6]} 29.
Re2 {[%clk 0:01:46.6]} 29... Qxg3 {[%clk 0:00:29.9]} 30. Qxc6 {[%clk 0:01:44.5]}
30... Rf8 {[%clk 0:00:25.9]} 31. Rxa7 {[%clk 0:01:37.6]} 31... Rg6 {[%clk
0:00:18.7]} 32. a5 {[%clk 0:01:32.1]} 32... h5 {[%clk 0:00:19.2]} 33. a6 {[%clk
0:01:31.7]} 33... h4 {[%clk 0:00:19.8]} 34. Ra8 {[%clk 0:01:32.1]} 34... h3
{[%clk 0:00:20.4]} 35. Rxf8+ {[%clk 0:01:31]} 35... Kxf8 {[%clk 0:00:20.2]} 36.
a7 {[%clk 0:01:31.5]} 1-0

[Event "*** Titled Tuesday Blitz"]
[Site "Chess.com"]
[Date "2020.10.20"]
[Round "8"]
[White "UKR_Master"]
[Black "MisiekZielony"]
[Result "1-0"]
[WhiteElo "2460"]
[BlackElo "2282"]
[TimeControl "180+1"]
[EndTime "11:35:31 PDT"]
[Termination "UKR_Master won on time"]

1. e4 {[%clk 0:03:00.9]} 1... Nf6 {[%clk 0:02:59.6]} 2. e5 {[%clk 0:03:00.9]}
2... Nd5 {[%clk 0:02:59.7]} 3. c4 {[%clk 0:03:01.6]} 3... Nb6 {[%clk 0:02:59.4]}
4. c5 {[%clk 0:03:02.1]} 4... Nd5 {[%clk 0:02:58.6]} 5. Nc3 {[%clk 0:03:02.7]}
5... c6 {[%clk 0:02:57.9]} 6. d4 {[%clk 0:03:02.6]} 6... d6 {[%clk 0:02:58]} 7.
cxd6 {[%clk 0:02:59.9]} 7... exd6 {[%clk 0:02:58.1]} 8. Nf3 {[%clk 0:02:58]}
8... Nxc3 {[%clk 0:02:47.3]} 9. bxc3 {[%clk 0:02:57.3]} 9... dxe5 {[%clk
0:02:47.9]} 10. Nxe5 {[%clk 0:02:54.5]} 10... Nd7 {[%clk 0:02:48.4]} 11. Nf3
{[%clk 0:02:52.2]} 11... Be7 {[%clk 0:02:39.6]} 12. Bd3 {[%clk 0:02:51.9]} 12...
O-O {[%clk 0:02:39.6]} 13. O-O {[%clk 0:02:52.4]} 13... b6 {[%clk 0:02:22.1]}
14. Re1 {[%clk 0:02:46.6]} 14... Bb7 {[%clk 0:02:21.4]} 15. Bc2 {[%clk
0:02:35.3]} 15... Re8 {[%clk 0:02:13.8]} 16. Qd3 {[%clk 0:02:31.9]} 16... Nf8
{[%clk 0:02:13.3]} 17. Ne5 {[%clk 0:02:26.8]} 17... Ng6 {[%clk 0:01:05.3]} 18.
Qf5 {[%clk 0:01:36.5]} 18... Bf6 {[%clk 0:00:57.9]} 19. h4 {[%clk 0:01:29.2]}
19... Bxe5 {[%clk 0:00:54.1]} 20. dxe5 {[%clk 0:01:27.5]} 20... Qc8 {[%clk
0:00:08.4]} 21. Qg5 {[%clk 0:01:23.3]} 21... h6 {[%clk 0:00:07.8]} 22. Qg3
{[%clk 0:01:23.4]} 22... Qe6 {[%clk 0:00:06.5]} 23. h5 {[%clk 0:01:21.9]} 23...
Ne7 {[%clk 0:00:05.4]} 24. Bb3 {[%clk 0:01:20.1]} 24... Qf5 {[%clk 0:00:03.1]}
25. Bxh6 {[%clk 0:01:18.3]} 1-0

[Event "*** Titled Tuesday Blitz"]
[Site "Chess.com"]
[Date "2020.10.20"]
[Round "8"]
[White "NeverW84M8"]
[Black "Meri-Arabidze"]
[Result "0-1"]
[WhiteElo "2461"]
[BlackElo "2633"]
[TimeControl "180+1"]
[EndTime "11:35:32 PDT"]
[Termination "Meri-Arabidze won by resignation"]

1. Nf3 {[%clk 0:03:00.9]} 1... d5 {[%clk 0:02:58.4]} 2. b3 {[%clk 0:03:01.8]}
2... Nf6 {[%clk 0:02:54.4]} 3. Bb2 {[%clk 0:03:02.7]} 3... g6 {[%clk 0:02:54.7]}
4. c4 {[%clk 0:02:57.9]} 4... c6 {[%clk 0:02:54.5]} 5. e3 {[%clk 0:02:56]} 5...
Bg7 {[%clk 0:02:54.2]} 6. Be2 {[%clk 0:02:55.8]} 6... O-O {[%clk 0:02:53.9]} 7.
O-O {[%clk 0:02:55.2]} 7... Nbd7 {[%clk 0:02:52.8]} 8. d3 {[%clk 0:02:54.4]}
8... Re8 {[%clk 0:02:52.2]} 9. Nbd2 {[%clk 0:02:46.1]} 9... e5 {[%clk
0:02:51.4]} 10. cxd5 {[%clk 0:02:43.4]} 10... cxd5 {[%clk 0:02:48.8]} 11. e4
{[%clk 0:02:42.6]} 11... Nh5 {[%clk 0:02:33.3]} 12. Re1 {[%clk 0:02:41.6]} 12...
Nf4 {[%clk 0:02:32.4]} 13. Bf1 {[%clk 0:02:41.5]} 13... Nb6 {[%clk 0:02:30.4]}
14. exd5 {[%clk 0:02:38.3]} 14... Qxd5 {[%clk 0:02:19.4]} 15. Nc4 {[%clk
0:02:38.2]} 15... Nxc4 {[%clk 0:01:43.7]} 16. dxc4 {[%clk 0:02:18]} 16... Qxd1
{[%clk 0:01:44]} 17. Raxd1 {[%clk 0:02:18.2]} 17... Bg4 {[%clk 0:01:43.8]} 18.
Re3 {[%clk 0:02:10.4]} 18... e4 {[%clk 0:01:43]} 19. Bxg7 {[%clk 0:01:59.9]}
19... Kxg7 {[%clk 0:01:36]} 20. Rd4 {[%clk 0:01:56.4]} 20... Nh3+ {[%clk
0:01:10.3]} 21. gxh3 {[%clk 0:01:54.8]} 21... Bxf3 {[%clk 0:01:10.6]} 22. Bg2
{[%clk 0:01:54.4]} 22... Bxg2 {[%clk 0:01:06.4]} 23. Kxg2 {[%clk 0:01:54.4]}
23... f5 {[%clk 0:01:06.4]} 24. Rd7+ {[%clk 0:01:54]} 24... Kh6 {[%clk
0:01:06.6]} 25. Rxb7 {[%clk 0:01:53.7]} 25... f4 {[%clk 0:01:06.9]} 26. Re1
{[%clk 0:01:52.2]} 26... Re5 {[%clk 0:01:00.5]} 27. Rd1 {[%clk 0:01:45.6]} 27...
e3 {[%clk 0:00:46.7]} 28. Rdd7 {[%clk 0:01:16.1]} 28... e2 {[%clk 0:00:21]} 29.
h4 {[%clk 0:01:16.1]} 29... Rh8 {[%clk 0:00:18.2]} 0-1

[Event "*** Titled Tuesday Blitz"]
[Site "Chess.com"]
[Date "2020.10.20"]
[Round "8"]
[White "albi1999"]
[Black "medalja"]
[Result "0-1"]
[WhiteElo "2576"]
[BlackElo "2430"]
[TimeControl "180+1"]
[EndTime "11:35:41 PDT"]
[Termination "medalja won by resignation"]

1. d4 {[%clk 0:02:51.2]} 1... Nf6 {[%clk 0:02:59.5]} 2. c4 {[%clk 0:02:48.7]}
2... e6 {[%clk 0:02:59.4]} 3. Nf3 {[%clk 0:02:46.6]} 3... d5 {[%clk 0:02:55.1]}
4. g3 {[%clk 0:02:46.6]} 4... Be7 {[%clk 0:02:53.7]} 5. Bg2 {[%clk 0:02:45.6]}
5... O-O {[%clk 0:02:54.3]} 6. O-O {[%clk 0:02:46.1]} 6... dxc4 {[%clk
0:02:54.7]} 7. Qc2 {[%clk 0:02:46.5]} 7... b6 {[%clk 0:02:54.4]} 8. Bg5 {[%clk
0:02:45.1]} 8... Nd5 {[%clk 0:02:50.9]} 9. Bxe7 {[%clk 0:02:44.8]} 9... Qxe7
{[%clk 0:02:51.5]} 10. Ne5 {[%clk 0:02:45.1]} 10... Bb7 {[%clk 0:02:45.5]} 11.
Qxc4 {[%clk 0:02:44.5]} 11... c5 {[%clk 0:02:45.7]} 12. dxc5 {[%clk 0:02:44.1]}
12... Rc8 {[%clk 0:02:45.9]} 13. Nd3 {[%clk 0:02:31.2]} 13... Nd7 {[%clk
0:02:35.5]} 14. Na3 {[%clk 0:02:00.6]} 14... Nxc5 {[%clk 0:02:33.3]} 15. Nxc5
{[%clk 0:02:00.8]} 15... Rxc5 {[%clk 0:02:33.4]} 16. Qd4 {[%clk 0:01:56.6]}
16... Rac8 {[%clk 0:02:29.2]} 17. Rfd1 {[%clk 0:01:55]} 17... h6 {[%clk
0:02:16.1]} 18. Qd2 {[%clk 0:01:50.6]} 18... Qc7 {[%clk 0:01:46.8]} 19. b4
{[%clk 0:01:42.6]} 19... Rc6 {[%clk 0:01:09.8]} 20. Nb5 {[%clk 0:01:42.1]} 20...
Qb8 {[%clk 0:01:09.5]} 21. Nd4 {[%clk 0:01:41.1]} 21... Rc4 {[%clk 0:01:07.9]}
22. a3 {[%clk 0:01:38.2]} 22... Nc3 {[%clk 0:01:02.7]} 23. Bxb7 {[%clk
0:01:29.2]} 23... Qxb7 {[%clk 0:00:58.1]} 24. Re1 {[%clk 0:01:21.3]} 24... Rd8
{[%clk 0:00:40.8]} 25. e3 {[%clk 0:01:19.6]} 25... e5 {[%clk 0:00:40.8]} 26. Qd3
{[%clk 0:01:18.4]} 26... Qd5 {[%clk 0:00:41]} 27. Rac1 {[%clk 0:00:51.2]} 27...
exd4 {[%clk 0:00:39.7]} 28. exd4 {[%clk 0:00:52.1]} 28... Qxd4 {[%clk
0:00:40.1]} 29. Qf5 {[%clk 0:00:40.8]} 29... Ne2+ {[%clk 0:00:38.7]} 30. Rxe2
{[%clk 0:00:39.8]} 30... Rxc1+ {[%clk 0:00:38.6]} 31. Kg2 {[%clk 0:00:40.7]}
31... Qd5+ {[%clk 0:00:38.1]} 32. Qxd5 {[%clk 0:00:41.4]} 32... Rxd5 {[%clk
0:00:38.8]} 0-1

[Event "*** Titled Tuesday Blitz"]
[Site "Chess.com"]
[Date "2020.10.20"]
[Round "8"]
[White "Sashadav97"]
[Black "Alexander_Moskalenko"]
[Result "1-0"]
[WhiteElo "2678"]
[BlackElo "2890"]
[TimeControl "180+1"]
[EndTime "11:35:49 PDT"]
[Termination "Sashadav97 won by resignation"]

1. Nf3 {[%clk 0:03:00.9]} 1... d5 {[%clk 0:02:58.8]} 2. c4 {[%clk 0:03:00.3]}
2... c6 {[%clk 0:02:58.9]} 3. g3 {[%clk 0:02:59.7]} 3... Bg4 {[%clk 0:02:57.7]}
4. Bg2 {[%clk 0:02:57.2]} 4... Nd7 {[%clk 0:02:55.3]} 5. cxd5 {[%clk 0:02:51]}
5... cxd5 {[%clk 0:02:56.2]} 6. Qb3 {[%clk 0:02:49.8]} 6... e6 {[%clk
0:02:45.3]} 7. O-O {[%clk 0:02:45.3]} 7... Qb6 {[%clk 0:02:34.7]} 8. Qa4 {[%clk
0:02:36.5]} 8... Bxf3 {[%clk 0:02:32.7]} 9. Bxf3 {[%clk 0:02:37.4]} 9... Nf6
{[%clk 0:02:33.4]} 10. d4 {[%clk 0:02:33.8]} 10... Bd6 {[%clk 0:02:29.6]} 11.
Nc3 {[%clk 0:02:32.6]} 11... O-O {[%clk 0:02:29.2]} 12. e3 {[%clk 0:02:32.5]}
12... Rfc8 {[%clk 0:02:28.2]} 13. Qd1 {[%clk 0:02:19.4]} 13... Rc7 {[%clk
0:02:19.5]} 14. Qd3 {[%clk 0:02:01.8]} 14... Rac8 {[%clk 0:02:16.5]} 15. Rb1
{[%clk 0:02:00.3]} 15... a6 {[%clk 0:01:54.1]} 16. Bd2 {[%clk 0:01:59.6]} 16...
Qa7 {[%clk 0:01:29.3]} 17. Rfc1 {[%clk 0:01:55.4]} 17... b5 {[%clk 0:01:29]} 18.
Ne2 {[%clk 0:01:53.2]} 18... Nb6 {[%clk 0:01:22.5]} 19. Rxc7 {[%clk 0:01:51.9]}
19... Rxc7 {[%clk 0:01:19.3]} 20. Ba5 {[%clk 0:01:46.8]} 20... g6 {[%clk
0:01:17]} 21. b3 {[%clk 0:01:22.7]} 21... h5 {[%clk 0:01:14.5]} 22. Rc1 {[%clk
0:01:10.8]} 22... Qb7 {[%clk 0:00:58.2]} 23. Rxc7 {[%clk 0:01:10.2]} 23... Bxc7
{[%clk 0:00:58.9]} 24. Qc2 {[%clk 0:01:04.2]} 24... Na8 {[%clk 0:00:58.3]} 25.
Bd2 {[%clk 0:01:02.6]} 25... Nb6 {[%clk 0:00:51.6]} 26. Nc1 {[%clk 0:01:02.4]}
26... Nc8 {[%clk 0:00:49.6]} 27. Nd3 {[%clk 0:01:02.5]} 27... Nd6 {[%clk
0:00:50.1]} 28. Nc5 {[%clk 0:01:01.7]} 28... Qc6 {[%clk 0:00:49.6]} 29. Bd1
{[%clk 0:00:57.8]} 29... Nde4 {[%clk 0:00:48.1]} 30. Nxe4 {[%clk 0:00:56.9]}
30... Qxc2 {[%clk 0:00:39.8]} 31. Nxf6+ {[%clk 0:00:57]} 31... Kg7 {[%clk
0:00:40.3]} 32. Nxh5+ {[%clk 0:00:56.5]} 32... gxh5 {[%clk 0:00:38.4]} 33. Bxc2
{[%clk 0:00:57]} 33... f5 {[%clk 0:00:37.6]} 34. Bd3 {[%clk 0:00:57.1]} 34...
Bd6 {[%clk 0:00:37.6]} 35. a4 {[%clk 0:00:57]} 35... bxa4 {[%clk 0:00:38]} 36.
bxa4 {[%clk 0:00:57.9]} 36... Bc7 {[%clk 0:00:38.2]} 37. Bxa6 {[%clk 0:00:57.8]}
37... Ba5 {[%clk 0:00:39.1]} 38. Bxa5 {[%clk 0:00:57.4]} 1-0

[Event "*** Titled Tuesday Blitz"]
[Site "Chess.com"]
[Date "2020.10.20"]
[Round "8"]
[White "MoreChessJulia"]
[Black "MIJuanReyesRosa"]
[Result "0-1"]
[WhiteElo "1979"]
[BlackElo "2102"]
[TimeControl "180+1"]
[EndTime "11:35:51 PDT"]
[Termination "MIJuanReyesRosa won by resignation"]

1. d4 {[%clk 0:02:59.8]} 1... d5 {[%clk 0:02:59]} 2. Bg5 {[%clk 0:02:59.1]} 2...
g6 {[%clk 0:02:54.5]} 3. f4 {[%clk 0:02:58]} 3... Bg7 {[%clk 0:02:53.3]} 4. e3
{[%clk 0:02:57.2]} 4... c5 {[%clk 0:02:50.1]} 5. c3 {[%clk 0:02:56.3]} 5... Nf6
{[%clk 0:02:45.7]} 6. Nd2 {[%clk 0:02:55.1]} 6... O-O {[%clk 0:02:39.4]} 7. Bd3
{[%clk 0:02:54]} 7... Nc6 {[%clk 0:02:25.4]} 8. h3 {[%clk 0:02:52.5]} 8... Qb6
{[%clk 0:02:16.6]} 9. Rb1 {[%clk 0:02:44.2]} 9... Bf5 {[%clk 0:02:13]} 10. Bxf5
{[%clk 0:02:40.7]} 10... gxf5 {[%clk 0:02:12.7]} 11. Ngf3 {[%clk 0:02:39.5]}
11... Ne4 {[%clk 0:02:05.7]} 12. Bh4 {[%clk 0:02:33.8]} 12... e6 {[%clk
0:01:58.8]} 13. O-O {[%clk 0:02:32.1]} 13... Rac8 {[%clk 0:01:52.9]} 14. Ng5
{[%clk 0:02:30]} 14... cxd4 {[%clk 0:01:34.1]} 15. Ndxe4 {[%clk 0:02:26.9]}
15... dxe4 {[%clk 0:01:14.4]} 16. exd4 {[%clk 0:02:23.8]} 16... h6 {[%clk
0:01:07.5]} 17. Qh5 {[%clk 0:02:21.5]} 17... hxg5 {[%clk 0:01:05.4]} 18. Bxg5
{[%clk 0:02:07.5]} 18... e5 {[%clk 0:00:22.7]} 19. fxe5 {[%clk 0:02:03.4]} 19...
Nxe5 {[%clk 0:00:21.4]} 20. Rxf5 {[%clk 0:02:01.9]} 20... Ng6 {[%clk 0:00:20.3]}
21. Rbf1 {[%clk 0:01:53.1]} 21... Qxb2 {[%clk 0:00:17.2]} 22. Bc1 {[%clk
0:01:42.4]} 22... Qxc3 {[%clk 0:00:15.3]} 23. Rd5 {[%clk 0:01:27.4]} 23... Qc4
{[%clk 0:00:13.6]} 24. Rd7 {[%clk 0:01:25.1]} 24... Rcd8 {[%clk 0:00:13]} 25.
Rxb7 {[%clk 0:01:22.8]} 25... Qxd4+ {[%clk 0:00:12.1]} 26. Kh1 {[%clk
0:01:21.2]} 26... e3 {[%clk 0:00:11.8]} 27. Bb2 {[%clk 0:01:12.8]} 27... Qd3
{[%clk 0:00:10.7]} 28. Rd1 {[%clk 0:01:08.8]} 28... Qxd1+ {[%clk 0:00:09.6]} 29.
Qxd1 {[%clk 0:01:06.9]} 29... Rxd1+ {[%clk 0:00:09.1]} 30. Kh2 {[%clk
0:01:07.4]} 30... Bxb2 {[%clk 0:00:08.7]} 0-1

[Event "*** Titled Tuesday Blitz"]
[Site "Chess.com"]
[Date "2020.10.20"]
[Round "8"]
[White "Mikasinski"]
[Black "Beca95"]
[Result "0-1"]
[WhiteElo "2582"]
[BlackElo "2904"]
[TimeControl "180+1"]
[EndTime "11:35:52 PDT"]
[Termination "Beca95 won by resignation"]

1. e4 {[%clk 0:03:00.9]} 1... c5 {[%clk 0:03:00]} 2. Nf3 {[%clk 0:03:00.7]} 2...
e6 {[%clk 0:03:00.5]} 3. d4 {[%clk 0:03:00.7]} 3... cxd4 {[%clk 0:03:00.9]} 4.
Nxd4 {[%clk 0:03:01.4]} 4... a6 {[%clk 0:03:01.3]} 5. Be2 {[%clk 0:03:00.8]}
5... Qc7 {[%clk 0:02:59.9]} 6. O-O {[%clk 0:03:00.6]} 6... d6 {[%clk 0:03:00.2]}
7. Nc3 {[%clk 0:03:00.4]} 7... Nd7 {[%clk 0:03:00.4]} 8. f4 {[%clk 0:03:00.6]}
8... Ngf6 {[%clk 0:03:00.7]} 9. Be3 {[%clk 0:02:59]} 9... b5 {[%clk 0:02:59.8]}
10. Bf3 {[%clk 0:02:58.4]} 10... Bb7 {[%clk 0:02:59.8]} 11. a3 {[%clk
0:02:50.6]} 11... Be7 {[%clk 0:02:57.3]} 12. Kh1 {[%clk 0:02:36.9]} 12... h5
{[%clk 0:02:55.7]} 13. h3 {[%clk 0:02:16.2]} 13... h4 {[%clk 0:02:54.8]} 14. Qe2
{[%clk 0:02:10.7]} 14... Rb8 {[%clk 0:02:53.1]} 15. Rad1 {[%clk 0:02:10.2]}
15... g6 {[%clk 0:02:52.6]} 16. Bf2 {[%clk 0:02:08.6]} 16... e5 {[%clk
0:02:46.9]} 17. fxe5 {[%clk 0:01:57.6]} 17... Nxe5 {[%clk 0:02:46.2]} 18. Be3
{[%clk 0:01:52.5]} 18... Nh5 {[%clk 0:02:02.5]} 19. Bxh5 {[%clk 0:01:39.2]}
19... Rxh5 {[%clk 0:02:03.4]} 20. Nd5 {[%clk 0:01:36.3]} 20... Bxd5 {[%clk
0:02:01.5]} 21. exd5 {[%clk 0:01:36.7]} 21... Qc4 {[%clk 0:01:49.6]} 22. Qf2
{[%clk 0:01:28.5]} 22... f5 {[%clk 0:01:41.7]} 23. Ne6 {[%clk 0:01:23.8]} 23...
Kf7 {[%clk 0:01:33.3]} 24. b3 {[%clk 0:01:21.3]} 24... Qc8 {[%clk 0:01:32.9]}
25. Bf4 {[%clk 0:01:06]} 25... Bf6 {[%clk 0:01:32.9]} 26. Bxe5 {[%clk
0:00:51.7]} 26... Bxe5 {[%clk 0:01:32.3]} 27. Qa7+ {[%clk 0:00:51.8]} 27... Kg8
{[%clk 0:01:24.3]} 28. Rfe1 {[%clk 0:00:36.6]} 28... Rh7 {[%clk 0:01:23.2]} 29.
Qf2 {[%clk 0:00:31.6]} 29... Qb7 {[%clk 0:01:19.3]} 30. Qf3 {[%clk 0:00:27.2]}
30... Rc8 {[%clk 0:01:17.6]} 31. Re2 {[%clk 0:00:24.5]} 31... Qe7 {[%clk
0:01:15]} 32. Nd4 {[%clk 0:00:22.6]} 32... Qg5 {[%clk 0:00:59.4]} 33. Nc6 {[%clk
0:00:23]} 33... Bg3 {[%clk 0:00:53.2]} 34. Ne7+ {[%clk 0:00:22.7]} 34... Rxe7
{[%clk 0:00:52.1]} 0-1

[Event "*** Titled Tuesday Blitz"]
[Site "Chess.com"]
[Date "2020.10.20"]
[Round "8"]
[White "sotochess"]
[Black "Euwe1234"]
[Result "1-0"]
[WhiteElo "2635"]
[BlackElo "2367"]
[TimeControl "180+1"]
[EndTime "11:35:55 PDT"]
[Termination "sotochess won by resignation"]

1. e4 {[%clk 0:02:58.9]} 1... c5 {[%clk 0:02:59.8]} 2. Nf3 {[%clk 0:02:58.5]}
2... Nc6 {[%clk 0:03:00.1]} 3. d4 {[%clk 0:02:58.6]} 3... cxd4 {[%clk 0:03:01]}
4. Nxd4 {[%clk 0:02:59.4]} 4... Nf6 {[%clk 0:03:01.2]} 5. Nc3 {[%clk 0:02:59.2]}
5... e5 {[%clk 0:03:01.4]} 6. Ndb5 {[%clk 0:02:59.3]} 6... d6 {[%clk 0:03:01.7]}
7. Bg5 {[%clk 0:02:59.3]} 7... a6 {[%clk 0:03:01.7]} 8. Na3 {[%clk 0:02:58.8]}
8... b5 {[%clk 0:03:01.9]} 9. Nd5 {[%clk 0:02:58.1]} 9... Be7 {[%clk 0:03:01.9]}
10. Bxf6 {[%clk 0:02:58.6]} 10... Bxf6 {[%clk 0:03:02.8]} 11. Nb1 {[%clk
0:02:59.1]} 11... O-O {[%clk 0:02:14.6]} 12. a4 {[%clk 0:02:58.2]} 12... bxa4
{[%clk 0:02:14]} 13. Nd2 {[%clk 0:02:57.6]} 13... Rb8 {[%clk 0:02:13.7]} 14. Nc4
{[%clk 0:02:57.3]} 14... Bg5 {[%clk 0:02:09.8]} 15. Rxa4 {[%clk 0:02:48.9]}
15... a5 {[%clk 0:02:10]} 16. c3 {[%clk 0:02:48.3]} 16... Be6 {[%clk 0:02:10]}
17. Be2 {[%clk 0:02:45.7]} 17... Kh8 {[%clk 0:02:08.9]} 18. O-O {[%clk
0:02:45.4]} 18... f5 {[%clk 0:02:08.8]} 19. exf5 {[%clk 0:02:45.4]} 19... Bxf5
{[%clk 0:02:09.7]} 20. Bg4 {[%clk 0:02:40.9]} 20... Bg6 {[%clk 0:02:04.5]} 21.
Bf3 {[%clk 0:02:34.8]} 21... e4 {[%clk 0:02:02.9]} 22. Be2 {[%clk 0:02:33.8]}
22... Bf7 {[%clk 0:01:31.2]} 23. Kh1 {[%clk 0:02:25.8]} 23... Ne7 {[%clk
0:01:27.8]} 24. Nxe7 {[%clk 0:02:12.2]} 24... Bxe7 {[%clk 0:01:28.7]} 25. Nxa5
{[%clk 0:02:11.4]} 25... Rxb2 {[%clk 0:01:26.5]} 26. Rxe4 {[%clk 0:02:03.5]}
26... Bf6 {[%clk 0:01:22.9]} 27. Nc4 {[%clk 0:01:56]} 27... d5 {[%clk
0:01:04.5]} 28. Nxb2 {[%clk 0:01:41.4]} 28... dxe4 {[%clk 0:01:02.9]} 29. Qc2
{[%clk 0:01:41.5]} 29... Qc7 {[%clk 0:00:59.7]} 30. Qxe4 {[%clk 0:01:35.5]}
30... Qxc3 {[%clk 0:00:58.6]} 31. Nd1 {[%clk 0:01:32.5]} 31... Qd2 {[%clk
0:00:56.4]} 32. Bf3 {[%clk 0:01:28.9]} 32... Re8 {[%clk 0:00:53.8]} 33. Qa4
{[%clk 0:01:28]} 33... h6 {[%clk 0:00:43.5]} 34. Ne3 {[%clk 0:01:26.3]} 34...
Rc8 {[%clk 0:00:40.8]} 35. h3 {[%clk 0:01:19.9]} 35... Bg6 {[%clk 0:00:36.5]}
36. Qg4 {[%clk 0:01:17.8]} 36... Rc1 {[%clk 0:00:18.3]} 37. Qxg6 {[%clk
0:01:15.6]} 37... Rxf1+ {[%clk 0:00:18.1]} 38. Nxf1 {[%clk 0:01:15.5]} 38...
Qxf2 {[%clk 0:00:19]} 39. Qe8+ {[%clk 0:01:11.9]} 1-0